bitfinex-derivatives/quotes_BTCF0:USTF0_20250810
["timestamp","ask_amount","ask_price","bid_price","bid_amount"]
[1754853395512,0.31070153,118770.0,118760.0,1.2168716]
[1754853395714,0.31070153,118770.0,118760.0,1.53896415]
[1754853398009,0.31070153,118770.0,118760.0,1.2168716]
[1754853398210,0.31070153,118770.0,118760.0,1.53896415]
[1754853407027,0.31070153,118770.0,118760.0,1.2168716]
[1754853407223,0.31070153,118770.0,118760.0,1.53896415]
[1754853407426,0.27738153,118770.0,118760.0,1.53896415]
[1754853409127,0.27738153,118770.0,118760.0,1.2168716]
[1754853409527,0.27738153,118770.0,118760.0,1.53896415]
[1754853412129,0.27738153,118770.0,118760.0,1.2168716]
[1754853412331,0.27738153,118770.0,118760.0,1.53896415]
[1754853413527,0.27738153,118770.0,118760.0,1.2168716]
[1754853413732,0.27738153,118770.0,118760.0,1.53896415]
[1754853413926,0.27738153,118770.0,118760.0,1.2168716]
[1754853414130,0.27738153,118770.0,118760.0,1.53896415]
[1754853414330,0.27738153,118770.0,118760.0,1.2168716]
[1754853414531,0.27738153,118770.0,118760.0,1.53896415]
[1754853417825,0.19088153,118770.0,118760.0,1.53896415]
[1754853418028,0.02250473,118770.0,118760.0,1.8610567]
[1754853418332,0.2865531,118800.0,118790.0,0.0841704]
[1754853418637,0.3499031,118800.0,118790.0,1.54242295]
[1754853418933,0.3718131,118800.0,118790.0,1.54242295]
[1754853419237,0.38042717,118800.0,118790.0,1.54242295]
[1754853419426,0.38842717,118800.0,118790.0,1.54242295]
[1754853419627,0.30316717,118800.0,118790.0,1.54242295]
[1754853419827,0.21899707,118800.0,118790.0,1.54242295]
[1754853421034,0.23378707,118800.0,118790.0,1.2203304]
[1754853421426,0.26698707,118800.0,118790.0,1.54242295]
[1754853422237,0.28234707,118800.0,118790.0,1.54242295]
[1754853422533,0.29925707,118800.0,118790.0,1.54242295]
[1754853423936,0.29925707,118800.0,118790.0,1.2203304]
[1754853424138,0.29925707,118800.0,118790.0,1.45825255]
[1754853425229,0.29925707,118800.0,118790.0,1.54242275]
[1754853425641,0.62134962,118800.0,118790.0,1.45825255]
[1754853425936,0.29925707,118800.0,118790.0,1.45825255]
[1754853426437,0.26605707,118800.0,118790.0,1.54242275]
[1754853427537,0.21399707,118800.0,118790.0,1.54242275]
[1754853428535,0.17994707,118800.0,118790.0,1.8645153]
[1754853428837,0.09577717,118800.0,118790.0,1.8645153]
[1754853429938,0.0871631,118800.0,118790.0,1.8645153]
[1754853430130,0.10736335,118800.0,118790.0,1.8645153]
[1754853432038,0.10736335,118800.0,118790.0,1.2203302]
[1754853432240,0.10736335,118800.0,118790.0,1.8645153]
[1754853432731,0.13114335,118800.0,118790.0,1.8645153]
[1754853434039,0.13114335,118800.0,118790.0,1.2203302]
[1754853434240,0.13114335,118800.0,118790.0,1.8645153]
[1754853436639,0.19213335,118800.0,118790.0,0.76706275]
[1754853436942,0.5462659,118800.0,118790.0,0.3608]
[1754853437138,0.1309707,118790.0,118780.0,0.64205058]
[1754853437342,0.5432735,118790.0,118780.0,0.64205058]
[1754853437538,0.3693769,118770.0,118760.0,0.76708445]
[1754853437739,0.7116697,118770.0,118760.0,1.54548445]
[1754853437938,0.38957715,118770.0,118760.0,1.54548445]
[1754853438843,0.38957715,118770.0,118760.0,1.54588445]
[1754853439043,0.38957715,118770.0,118760.0,1.54688445]
[1754853439548,0.38957715,118770.0,118760.0,1.54888445]
[1754853440152,0.38957715,118770.0,118760.0,1.51291508]
[1754853442551,0.38957715,118770.0,118760.0,0.64992318]
[1754853442741,0.38957715,118770.0,118760.0,1.14244]
[1754853443048,0.38957715,118770.0,118760.0,1.42856318]
[1754853443944,0.38957715,118770.0,118760.0,1.51275538]
[1754853444752,0.39057715,118770.0,118760.0,1.51175538]
[1754853445351,0.38957715,118770.0,118760.0,1.42556318]
[1754853445543,0.39057715,118770.0,118760.0,1.42556318]
[1754853446047,0.38957715,118770.0,118760.0,0.64792318]
[1754853446350,0.38957715,118770.0,118760.0,1.51103548]
[1754853446749,0.38957715,118770.0,118760.0,0.73211548]
[1754853447144,0.38957715,118770.0,118760.0,0.64792318]
[1754853447342,0.38957715,118770.0,118760.0,0.3618]
[1754853447542,0.38957715,118770.0,118760.0,1.14068]
[1754853448537,0.39057715,118770.0,118760.0,1.14068]
[1754853448742,0.39157715,118770.0,118760.0,1.13968]
[1754853449751,0.39157715,118770.0,118760.0,0.3608]
[1754853449943,0.1309923,118760.0,118750.0,0.3608]
[1754853450251,0.2010023,118760.0,118750.0,1.42592318]
[1754853451049,0.2010023,118760.0,118750.0,0.64692318]
[1754853451450,0.2010023,118760.0,118750.0,1.42616318]
[1754853452046,0.2010023,118760.0,118750.0,0.64692318]
[1754853452251,0.2010023,118760.0,118750.0,1.42716318]
[1754853452950,0.2010023,118760.0,118750.0,1.14104]
[1754853453156,0.2010023,118760.0,118750.0,0.64792318]
[1754853453358,0.50722788,118760.0,118750.0,0.001]
[1754853453650,0.2211047,118760.0,118750.0,0.001]
[1754853453851,0.2211047,118760.0,118750.0,0.78032]
[1754853454051,0.5819047,118760.0,118750.0,0.78032]
[1754853454755,0.5829047,118760.0,118750.0,0.77932]
[1754853454954,0.5839047,118760.0,118750.0,0.77932]
[1754853455155,0.1309994,118750.0,118740.0,0.64692318]
[1754853455455,0.2010094,118750.0,118740.0,1.42648318]
[1754853456552,0.2010094,118750.0,118740.0,1.42748318]
[1754853457254,0.22110051,118750.0,118740.0,1.42748318]
[1754853457655,0.18842051,118750.0,118740.0,0.64792318]
[1754853457856,0.22192051,118750.0,118740.0,1.42744318]
[1754853458857,0.22192051,118750.0,118740.0,1.42748318]
[1754853461060,0.22192139,118750.0,118740.0,1.42748318]
[1754853461755,0.22192139,118750.0,118740.0,0.3618]
[1754853462058,0.22192139,118750.0,118740.0,1.14132]
[1754853463661,0.22292139,118750.0,118740.0,1.14132]
[1754853463958,0.22292139,118750.0,118740.0,1.14032]
[1754853464158,0.1311364,118740.0,118730.0,0.28612318]
[1754853464352,0.22294839,118740.0,118730.0,1.42648318]
[1754853464861,0.23119654,118740.0,118730.0,1.42648318]
[1754853466564,0.23119654,118740.0,118730.0,1.14036]
[1754853466756,0.0940835,118730.0,118720.0,0.64702318]
[1754853466957,0.15239549,118730.0,118720.0,1.42642318]
[1754853467157,0.13884549,118730.0,118720.0,0.3609]
[1754853467357,0.22295549,118730.0,118720.0,0.64702318]
[1754853467562,0.22295549,118730.0,118720.0,1.42662318]
[1754853467765,0.22295549,118730.0,118720.0,1.42762318]
[1754853469761,0.22295549,118730.0,118720.0,1.51184378]
[1754853469968,0.13884549,118730.0,118720.0,1.51184378]
[1754853470167,0.12897549,118730.0,118720.0,1.51384378]
[1754853470561,0.12897549,118730.0,118720.0,1.51392378]
[1754853470866,0.12897549,118730.0,118720.0,1.51420378]
[1754853471262,0.12897549,118730.0,118720.0,0.73424378]
[1754853471666,0.12897549,118730.0,118720.0,1.51416378]
[1754853474166,0.22295549,118730.0,118720.0,1.42986318]
[1754853475572,0.22295549,118730.0,118720.0,0.65002318]
[1754853475873,0.22295549,118730.0,118720.0,1.42982318]
[1754853477068,0.22295549,118730.0,118720.0,0.65002318]
[1754853477473,0.22295549,118730.0,118720.0,1.42970318]
[1754853478070,0.22295549,118730.0,118720.0,1.06890318]
[1754853478275,0.18945549,118730.0,118720.0,1.42970318]
[1754853478474,0.22295549,118730.0,118720.0,1.42970318]
[1754853479275,0.22295549,118730.0,118720.0,0.65002318]
[1754853479576,0.22295549,118730.0,118720.0,1.14346]
[1754853479876,0.22295549,118730.0,118720.0,1.14366]
[1754853480475,0.22295549,118730.0,118720.0,0.3639]
[1754853480680,0.22295549,118730.0,118720.0,0.78282]
[1754853483270,0.22295549,118730.0,118720.0,0.78294]
[1754853485581,0.22296492,118730.0,118720.0,0.78294]
[1754853487584,0.22296492,118730.0,118720.0,1.42986318]
[1754853488582,0.12768492,118730.0,118720.0,1.42986318]
[1754853488783,0.10431492,118730.0,118720.0,1.42986318]
[1754853489082,0.12768492,118730.0,118720.0,1.42986318]
[1754853489685,0.13698492,118730.0,118720.0,1.42986318]
[1754853489992,0.15129492,118730.0,118720.0,1.42986318]
[1754853490175,0.18851492,118730.0,118720.0,1.06906318]
[1754853490375,0.22135492,118730.0,118720.0,0.78294]
[1754853490579,0.5074781,118730.0,118720.0,0.7831]
[1754853490770,0.5074781,118730.0,118720.0,0.0031]
[1754853490975,0.8682781,118730.0,118720.0,0.0031]
[1754853502784,0.5074781,118730.0,118720.0,0.0031]
[1754853502991,0.8682781,118730.0,118720.0,0.0031]
[1754853507194,0.2012677,118710.0,118700.0,1.14004]
[1754853507491,0.1307548,118700.0,118690.0,0.3608]
[1754853507797,0.22137622,118700.0,118690.0,1.14044]
[1754853508088,0.22137622,118700.0,118690.0,1.51080508]
[1754853508279,0.22137622,118700.0,118690.0,1.51090508]
[1754853508280,0.12780622,118700.0,118690.0,1.51090508]
[1754853508484,0.10443622,118700.0,118690.0,1.51090508]
[1754853508993,0.12780622,118700.0,118690.0,1.51090508]
[1754853509995,0.12880622,118700.0,118690.0,1.51790508]
[1754853510889,0.12980622,118700.0,118690.0,1.52690508]
[1754853512197,0.12980622,118700.0,118690.0,1.56295361]
[1754853512797,0.12980622,118700.0,118690.0,1.2407819]
[1754853512995,0.12980622,118700.0,118690.0,1.56295361]
[1754853515998,0.15306622,118700.0,118690.0,1.56295361]
[1754853516392,0.18583622,118700.0,118690.0,1.56295361]
[1754853516692,0.22389622,118700.0,118690.0,1.56295361]
[1754853517001,0.22361622,118700.0,118690.0,1.56295361]
[1754853517386,0.22361622,118700.0,118690.0,0.78331361]
[1754853517590,0.22361622,118700.0,118690.0,1.56319361]
[1754853518500,0.22361622,118700.0,118690.0,1.2408219]
[1754853518798,0.22361622,118700.0,118690.0,1.56299361]
[1754853521300,0.22361622,118700.0,118690.0,1.2408219]
[1754853521802,0.22361622,118700.0,118690.0,1.56299361]
[1754853524408,0.22361622,118700.0,118690.0,1.56327361]
[1754853525099,0.22361622,118700.0,118690.0,1.56323361]
[1754853525808,0.19084622,118700.0,118690.0,1.56323361]
[1754853526010,0.13910622,118700.0,118690.0,1.56323361]
[1754853528513,0.15306622,118700.0,118690.0,1.56323361]
[1754853528804,0.20092622,118700.0,118690.0,1.56323361]
[1754853529108,0.22361622,118700.0,118690.0,1.56323361]
[1754853529702,0.22361622,118700.0,118690.0,0.3769]
[1754853529903,0.54578793,118700.0,118690.0,1.47859171]
[1754853531015,0.54578793,118700.0,118690.0,1.15642]
[1754853531209,0.22361622,118700.0,118690.0,1.47859171]
[1754853531597,0.22361622,118700.0,118690.0,1.56283361]
[1754853532322,0.22361622,118700.0,118690.0,0.78331361]
[1754853532516,0.22361622,118700.0,118690.0,0.69907171]
[1754853532707,0.22361622,118700.0,118690.0,1.47855171]
[1754853535520,0.54578793,118700.0,118690.0,0.69907171]
[1754853535718,0.54578793,118700.0,118690.0,1.47831171]
[1754853536113,0.22361622,118700.0,118690.0,1.47831171]
[1754853538322,0.22361622,118700.0,118690.0,0.69907171]
[1754853538818,0.22361622,118700.0,118690.0,1.47763171]
[1754853539520,0.22361622,118700.0,118690.0,1.47755171]
[1754853539721,0.22361622,118700.0,118690.0,1.15522]
[1754853540021,0.22361622,118700.0,118690.0,1.47739171]
[1754853542319,0.22361622,118700.0,118690.0,0.69907171]
[1754853542531,0.22361622,118700.0,118690.0,1.47695171]
[1754853543826,0.22361622,118700.0,118690.0,1.15478]
[1754853544019,0.22361622,118700.0,118690.0,1.47695171]
[1754853544219,0.54578793,118700.0,118690.0,1.47679171]
[1754853544931,0.22361622,118700.0,118690.0,1.47679171]
[1754853546024,0.22361622,118700.0,118690.0,1.15462]
[1754853546319,0.22361622,118700.0,118690.0,1.47679171]
[1754853548034,0.22363012,118700.0,118690.0,1.47679171]
[1754853549130,0.22363012,118700.0,118690.0,1.11599171]
[1754853549430,0.22363012,118700.0,118690.0,1.47679171]
[1754853550320,0.22363012,118700.0,118690.0,1.11599171]
[1754853550516,0.22363012,118700.0,118690.0,1.47679171]
[1754853553331,0.22363012,118700.0,118690.0,1.15462]
[1754853553538,0.22363012,118700.0,118690.0,1.47679171]
[1754853554934,0.22363012,118700.0,118690.0,1.15462]
[1754853555134,0.22363012,118700.0,118690.0,1.47679171]
[1754853555635,0.54580183,118700.0,118690.0,1.47679171]
[1754853555835,0.22363012,118700.0,118690.0,1.15462]
[1754853556136,0.22363012,118700.0,118690.0,1.47679171]
[1754853557235,0.54580183,118700.0,118690.0,0.69907171]
[1754853557436,0.22363012,118700.0,118690.0,0.79278]
[1754853557643,0.54580183,118700.0,118690.0,0.79278]
[1754853560337,0.54580183,118700.0,118690.0,0.0161]
[1754853560637,0.54580183,118700.0,118690.0,0.79298]
[1754853561240,0.54580183,118700.0,118690.0,0.0161]
[1754853561732,0.54580183,118700.0,118690.0,0.7929]
[1754853561937,0.54580183,118700.0,118690.0,0.79294]
[1754853562334,0.54580183,118700.0,118690.0,0.0161]
[1754853562539,0.54580183,118700.0,118690.0,0.7929]
[1754853563022,0.54580183,118700.0,118690.0,1.11507171]
[1754853563228,0.54580183,118700.0,118690.0,0.33827171]
[1754853563437,0.54580183,118700.0,118690.0,1.11503171]
[1754853563639,0.54580183,118700.0,118690.0,0.33827171]
[1754853563840,0.54580183,118700.0,118690.0,1.11503171]
[1754853564233,0.54580183,118700.0,118690.0,0.0161]
[1754853564532,0.54580183,118700.0,118690.0,0.79274]
[1754853565226,0.54580183,118700.0,118690.0,0.0161]
[1754853565435,0.54580183,118700.0,118670.0,0.70157172]
[1754853565436,0.132559,118680.0,118670.0,0.70157172]
[1754853565736,0.56358676,118680.0,118670.0,1.45945171]
[1754853566542,0.24141505,118680.0,118670.0,1.45945171]
[1754853566732,0.24151505,118680.0,118670.0,1.45955171]
[1754853566933,0.24151505,118680.0,118670.0,1.47255171]
[1754853567135,0.24251505,118680.0,118670.0,1.47255171]
[1754853567837,0.24351505,118680.0,118670.0,1.47955171]
[1754853568039,0.56568676,118680.0,118670.0,1.47655171]
[1754853568740,0.21932129,118680.0,118670.0,1.47455171]
[1754853569441,0.21932129,118680.0,118670.0,0.69807171]
[1754853569941,0.21932129,118680.0,118670.0,1.47459171]
[1754853570142,0.21932129,118680.0,118670.0,0.69807171]
[1754853570338,0.21932129,118680.0,118670.0,1.15242]
[1754853570642,0.21932129,118680.0,118670.0,1.47459171]
[1754853571342,0.21932129,118680.0,118670.0,1.15242]
[1754853571542,0.21932129,118680.0,118670.0,1.47459171]
[1754853573243,0.21932129,118680.0,118670.0,1.15242]
[1754853573543,0.21932129,118680.0,118670.0,1.47459171]
[1754853574046,0.21932129,118680.0,118670.0,1.11379171]
[1754853574242,0.21932129,118680.0,118670.0,1.47459171]
[1754853574840,0.21932129,118680.0,118670.0,1.55884771]
[1754853581030,0.13381129,118680.0,118670.0,1.91964771]
[1754853581230,0.13381129,118680.0,118670.0,1.597476]
[1754853581231,0.0021,118680.0,118670.0,1.597476]
[1754853581430,0.0021,118680.0,118670.0,2.24181942]
[1754853582140,0.0021,118680.0,118670.0,2.17026936]
[1754853582335,0.0021,118680.0,118670.0,1.88387268]
[1754853589845,0.1088996,118680.0,118670.0,1.88387268]
[1754853590250,0.1330796,118680.0,118670.0,1.88387268]
[1754853592648,0.1582096,118680.0,118670.0,1.10735268]
[1754853592848,0.2058996,118680.0,118670.0,0.7367]
[1754853593149,0.24477525,118680.0,118670.0,1.6039567]
[1754853595662,0.24477525,118680.0,118670.0,1.2431567]
[1754853597957,0.24477525,118680.0,118670.0,1.52955338]
[1754853600560,0.24477525,118680.0,118670.0,1.44529668]
[1754853600751,0.24477525,118680.0,118670.0,1.1589]
[1754853602362,0.24477525,118680.0,118670.0,0.3759]
[1754853602655,0.22598363,118680.0,118670.0,0.3759]
[1754853602962,0.22598363,118680.0,118670.0,1.15846]
[1754853603353,0.22598363,118680.0,118670.0,1.1585]
[1754853604061,0.22598363,118680.0,118670.0,0.3759]
[1754853604261,0.22598363,118680.0,118670.0,1.1585]
[1754853604561,0.22598363,118680.0,118670.0,1.44489668]
[1754853604861,0.22598363,118680.0,118670.0,1.52915298]
[1754853605254,0.13849363,118680.0,118670.0,1.52915298]
[1754853605456,0.10643363,118680.0,118670.0,1.52915298]
[1754853605662,0.12954363,118680.0,118670.0,1.52915298]
[1754853605956,0.10643363,118680.0,118670.0,1.88995298]
[1754853606163,0.02218403,118680.0,118670.0,1.88995298]
[1754853606356,0.0863488,118680.0,118670.0,1.88995298]
[1754853609064,0.0021,118680.0,118670.0,1.88995298]
[1754853610866,0.0021,118680.0,118670.0,2.17634966]
[1754853611260,0.0021,118680.0,118670.0,1.88995298]
[1754853612375,0.0021,118680.0,118670.0,2.17634966]
[1754853612675,0.22686211,118710.0,118700.0,0.0842356]
[1754853612676,0.31069661,118710.0,118700.0,0.0842356]
[1754853612864,0.26009897,118710.0,118700.0,1.51391228]
[1754853613463,0.27527897,118710.0,118700.0,1.51391228]
[1754853613670,0.33093897,118710.0,118700.0,1.51391228]
[1754853613870,0.24680627,118710.0,118700.0,1.51401228]
[1754853614069,0.16357727,118710.0,118700.0,1.51401228]
[1754853614564,0.15521747,118710.0,118700.0,1.51401228]
[1754853614769,0.12201747,118710.0,118700.0,1.51401228]
[1754853615168,0.12201747,118710.0,118700.0,1.51501228]
[1754853615169,0.12501747,118710.0,118700.0,1.51501228]
[1754853615564,0.06412747,118710.0,118700.0,1.51501228]
[1754853618669,0.04405061,118710.0,118700.0,1.51501228]
[1754853618973,0.02094061,118710.0,118700.0,1.51501228]
[1754853620169,1e-08,118710.0,118700.0,1.69178885]
[1754853620368,1e-08,118710.0,118700.0,1.68340028]
[1754853620766,1e-08,118710.0,118700.0,1.51491228]
[1754853622875,1e-08,118710.0,118700.0,1.52340392]
[1754853623274,1e-08,118710.0,118700.0,1.23700724]
[1754853625977,1e-08,118710.0,118700.0,1.2285156]
[1754853626367,0.02311001,118710.0,118700.0,1.2285156]
[1754853627272,0.02311001,118710.0,118700.0,1.51491228]
[1754853629283,0.09409,118720.0,118710.0,0.01617]
[1754853629471,0.09409,118720.0,118710.0,0.68590668]
[1754853629782,0.09409,118720.0,118710.0,0.77013518]
[1754853630378,0.09609,118720.0,118710.0,0.77013518]
[1754853630578,0.09619,118720.0,118710.0,0.77023518]
[1754853631282,0.1193,118720.0,118710.0,0.77023518]
[1754853631485,0.1223,118720.0,118710.0,0.83714117]
[1754853632086,0.1223,118720.0,118710.0,0.77023518]
[1754853632588,0.1183,118720.0,118710.0,0.77723518]
[1754853636086,0.1183,118720.0,118710.0,0.41643518]
[1754853636383,0.1183,118720.0,118710.0,1.13803518]
[1754853636986,0.1183,118720.0,118710.0,1.20489406]
[1754853638084,0.1183,118720.0,118710.0,1.98313406]
[1754853640692,0.1183,118720.0,118710.0,1.26153406]
[1754853640882,0.1183,118720.0,118710.0,1.98313406]
[1754853644391,0.13838171,118720.0,118710.0,1.98313406]
[1754853645093,0.13838171,118720.0,118710.0,1.26153406]
[1754853645292,0.13838171,118720.0,118710.0,1.98313406]
[1754853650700,0.13838171,118720.0,118710.0,1.26153406]
[1754853650900,0.13838171,118720.0,118710.0,1.98313406]
[1754853654300,0.13838171,118720.0,118710.0,2.3408547]
[1754853654997,0.46254037,118720.0,118710.0,0.79035716]
[1754853655192,0.54676187,118720.0,118710.0,1.56607716]
[1754853658204,0.22470321,118720.0,118710.0,1.2440185]
[1754853660504,0.22470321,118720.0,118710.0,1.2665385]
[1754853663009,0.22470321,118720.0,118710.0,1.55291304]
[1754853674716,0.22470321,118720.0,118710.0,1.2665385]
[1754853675013,0.22470321,118720.0,118710.0,1.55291304]
[1754853676016,0.22470321,118720.0,118710.0,1.19211304]
[1754853676218,0.22470321,118720.0,118710.0,1.55291304]
[1754853678229,0.22470321,118720.0,118710.0,1.5886779]
[1754853679726,0.22470321,118720.0,118710.0,1.5661579]
[1754853679923,0.54684261,118720.0,118710.0,1.5661579]
[1754853680227,0.54684261,118720.0,118710.0,1.5892679]
[1754853680427,0.54684261,118720.0,118710.0,1.5892279]
[1754853680819,0.54684261,118720.0,118710.0,1.2670885]
[1754853681016,0.54684261,118720.0,118710.0,0.4914085]
[1754853681221,0.54684261,118720.0,118710.0,1.5892279]
[1754853688340,0.22470321,118720.0,118710.0,1.5892279]
[1754853689434,0.54684261,118720.0,118710.0,1.5892279]
[1754853692030,0.54576261,118720.0,118710.0,0.7904379]
[1754853692232,0.54576261,118720.0,118710.0,1.5660379]
[1754853692733,0.54576261,118720.0,118710.0,1.5891479]
[1754853696029,0.54576261,118720.0,118710.0,1.2670085]
[1754853696231,0.54576261,118720.0,118710.0,1.5891479]
[1754853696933,0.54576261,118720.0,118710.0,0.4682985]
[1754853697240,0.54576261,118720.0,118710.0,0.8830185]
[1754853698241,0.54576261,118720.0,118710.0,0.1074985]
[1754853698441,0.54576261,118720.0,118710.0,0.8830185]
[1754853699239,0.54576261,118720.0,118710.0,1.2278579]
[1754853700539,0.22362321,118720.0,118710.0,0.4523379]
[1754853700841,0.54576261,118720.0,118710.0,1.2278579]
[1754853701339,0.54576261,118720.0,118710.0,0.9057185]
[1754853701642,0.54576261,118720.0,118710.0,1.2278579]
[1754853702036,0.54576261,118720.0,118710.0,1.5886579]
[1754853702237,0.54576261,118720.0,118710.0,0.8131379]
[1754853702438,0.54576261,118720.0,118710.0,1.5886179]
[1754853702635,0.22362321,118720.0,118710.0,1.5886179]
[1754853702939,0.54576261,118720.0,118710.0,1.5886179]
[1754853707639,0.54576261,118720.0,118710.0,1.5885779]
[1754853707942,0.54576261,118720.0,118710.0,0.8131379]
[1754853708146,0.54576261,118720.0,118710.0,1.5885379]
[1754853708341,0.11509321,118720.0,118710.0,1.5885379]
[1754853708642,0.10540321,118720.0,118710.0,1.9106773]
[1754853708835,0.10540311,118720.0,118710.0,1.9106773]
[1754853709542,0.02118171,118720.0,118710.0,1.9106773]
[1754853710245,0.35297706,118740.0,118730.0,0.4113737]
[1754853710246,0.36222706,118740.0,118730.0,0.4113737]
[1754853710447,0.36222706,118740.0,118730.0,1.1867737]
[1754853711547,0.37857706,118740.0,118730.0,1.1867737]
[1754853711747,0.34521706,118740.0,118730.0,1.1867737]
[1754853711949,0.31513706,118740.0,118730.0,1.1867737]
[1754853712442,0.32986706,118740.0,118730.0,1.1867737]
[1754853712845,0.33086706,118740.0,118730.0,1.1867737]
[1754853713246,0.33086706,118740.0,118730.0,1.5475737]
[1754853713446,0.23192386,118740.0,118730.0,1.5475737]
[1754853715452,0.24665386,118740.0,118730.0,1.5475737]
[1754853716552,0.23813096,118740.0,118730.0,1.5475737]
[1754853718554,0.23813096,118740.0,118730.0,1.2254343]
[1754853718755,0.23813096,118740.0,118730.0,1.5475737]
[1754853719154,0.25348096,118740.0,118730.0,1.5475737]
[1754853719355,0.31013096,118740.0,118730.0,1.5475737]
[1754853719856,0.63227036,118740.0,118730.0,1.5475737]
[1754853721556,0.31013096,118740.0,118730.0,1.5475737]
[1754853721855,0.63227036,118740.0,118730.0,1.5475737]
[1754853722157,0.6523087,118740.0,118730.0,1.5475737]
[1754853730362,0.6523087,118740.0,118730.0,1.1867737]
[1754853730564,0.6523087,118740.0,118730.0,1.5475737]
[1754853733568,0.6523087,118740.0,118730.0,1.1867737]
[1754853733870,0.6523087,118740.0,118730.0,1.5475737]
[1754853737367,0.71306177,118740.0,118730.0,1.5475737]
[1754853739173,0.39092237,118740.0,118730.0,1.5475737]
[1754853739469,0.71306177,118740.0,118730.0,1.5475737]
[1754853741270,0.69412041,118740.0,118730.0,1.5475737]
[1754853742778,0.37198101,118740.0,118730.0,1.56433841]
[1754853743069,0.31122794,118740.0,118730.0,1.56433841]
[1754853748775,0.31122794,118740.0,118730.0,1.20353841]
[1754853749074,0.31122794,118740.0,118730.0,1.56433841]
[1754853749779,0.31122794,118740.0,118730.0,1.20353841]
[1754853749975,0.31122794,118740.0,118730.0,1.56433841]
[1754853750879,0.63336734,118740.0,118730.0,1.56433841]
[1754853751177,0.63336734,118740.0,118730.0,0.34199411]
[1754853751379,0.63336734,118740.0,118730.0,1.11667411]
[1754853751679,1.73018674,118740.0,118730.0,0.01676471]
[1754853751978,0.2023287,118710.0,118700.0,0.89611921]
[1754853752178,0.54450644,118710.0,118700.0,1.73009861]
[1754853753180,0.54465567,118710.0,118700.0,0.46585211]
[1754853753378,0.54465567,118710.0,118700.0,1.223862]
[1754853753379,0.54475567,118710.0,118700.0,1.223862]
[1754853753679,0.54475567,118710.0,118700.0,1.5460414]
[1754853753980,0.54475567,118710.0,118700.0,1.223902]
[1754853754682,0.54475567,118710.0,118700.0,1.5450414]
[1754853754881,0.54575567,118710.0,118700.0,1.5450414]
[1754853758384,0.54575567,118710.0,118700.0,1.1861714]
[1754853758686,0.54575567,118710.0,118700.0,1.5469714]
[1754853760590,0.22361627,118710.0,118700.0,1.5469714]
[1754853761292,0.22361627,118710.0,118700.0,1.1861714]
[1754853761489,0.22361627,118710.0,118700.0,1.5469714]
[1754853761690,0.22361627,118710.0,118700.0,1.1861714]
[1754853761893,0.22361627,118710.0,118700.0,1.5469714]
[1754853762994,0.22361627,118710.0,118700.0,1.1861714]
[1754853763192,0.22361627,118710.0,118700.0,1.5469714]
[1754853767902,0.2034287,118710.0,118700.0,1.5469714]
[1754853768107,0.22357368,118710.0,118700.0,1.1861714]
[1754853768406,0.22357368,118710.0,118700.0,1.5469714]
[1754853774008,0.22357368,118710.0,118700.0,1.1861714]
[1754853774311,0.22357368,118710.0,118700.0,1.5469714]
[1754853777817,0.22357368,118710.0,118700.0,1.224832]
[1754853778015,0.22357368,118710.0,118700.0,1.5469714]
[1754853778418,0.22357368,118710.0,118700.0,1.1861714]
[1754853778718,0.22357368,118710.0,118700.0,1.5469714]
[1754853779518,0.54571308,118710.0,118700.0,1.5469714]
[1754853782519,0.22357368,118710.0,118700.0,1.5469714]
[1754853787219,0.54571308,118710.0,118700.0,1.5469714]
[1754853789022,0.54576095,118710.0,118700.0,1.5450414]
[1754853791325,0.54576095,118710.0,118700.0,0.7703614]
[1754853791629,0.54576095,118710.0,118700.0,1.5445614]
[1754853791816,0.22362155,118710.0,118700.0,1.5445614]
[1754853792017,0.54576095,118710.0,118700.0,1.5445614]
[1754853793227,0.54576095,118710.0,118700.0,0.7703614]
[1754853793427,0.54576095,118710.0,118700.0,1.5445214]
[1754853795126,0.54576095,118710.0,118700.0,1.222382]
[1754853795327,0.54576095,118710.0,118700.0,1.5445214]
[1754853795821,0.611535,118710.0,118700.0,1.5445214]
[1754853796927,0.2893956,118710.0,118700.0,1.5464514]
[1754853798326,0.2893956,118710.0,118700.0,1.1856514]
[1754853798531,0.2893956,118710.0,118700.0,1.5464514]
[1754853804833,0.2893956,118710.0,118700.0,1.224312]
[1754853805136,0.2893956,118710.0,118700.0,1.5464514]
[1754853805432,0.2893956,118710.0,118700.0,1.5462114]
[1754853805727,0.2893956,118710.0,118700.0,0.7722914]
[1754853805933,0.2893956,118710.0,118700.0,1.5462114]
[1754853812241,0.2893956,118710.0,118700.0,1.1854114]
[1754853812438,0.2893956,118710.0,118700.0,1.5462114]
[1754853813143,0.2893956,118710.0,118700.0,1.1854114]
[1754853813340,0.2893956,118710.0,118700.0,1.5462114]
[1754853815841,0.611535,118710.0,118700.0,1.5462114]
[1754853816641,0.2893956,118710.0,118700.0,1.5462114]
[1754853816943,0.611535,118710.0,118700.0,1.5462114]
[1754853818739,0.611535,118710.0,118700.0,1.5442814]
[1754853819543,0.611535,118710.0,118700.0,0.7703614]
[1754853819744,0.611535,118710.0,118700.0,1.5440814]
[1754853820346,0.611535,118710.0,118700.0,1.1832814]
[1754853820541,0.611535,118710.0,118700.0,1.221942]
[1754853820751,0.2893956,118710.0,118700.0,1.5440814]
[1754853820948,0.611535,118710.0,118700.0,1.5440814]
[1754853821647,0.611535,118710.0,118700.0,1.221942]
[1754853821950,0.611535,118710.0,118700.0,1.5440814]
[1754853823046,0.611535,118710.0,118700.0,0.7703614]
[1754853823440,0.611535,118710.0,118700.0,1.5440014]
[1754853824647,0.611535,118710.0,118700.0,1.1832014]
[1754853824854,0.611535,118710.0,118700.0,1.5440014]
[1754853825452,0.611535,118710.0,118700.0,1.5439614]
[1754853827556,0.2893956,118710.0,118700.0,1.5458914]
[1754853828054,0.611535,118710.0,118700.0,1.5458914]
[1754853828759,0.2893956,118710.0,118700.0,1.5458914]
[1754853831260,0.611535,118710.0,118700.0,1.5458914]
[1754853831558,0.2893956,118710.0,118700.0,1.5458914]
[1754853832055,0.2568856,118710.0,118700.0,1.5458914]
[1754853833062,0.2568856,118710.0,118700.0,0.7722914]
[1754853833771,0.2568856,118710.0,118700.0,1.5457714]
[1754853834066,0.2568856,118710.0,118700.0,1.1849714]
[1754853834366,0.2568856,118710.0,118700.0,1.5457714]
[1754853837266,0.2568856,118710.0,118700.0,1.1849714]
[1754853837566,0.2568856,118710.0,118700.0,1.5457714]
[1754853842173,0.2886956,118710.0,118700.0,1.5457714]
[1754853842370,0.1712956,118710.0,118700.0,1.5438414]
[1754853842681,0.1712956,118710.0,118700.0,1.5457714]
[1754853842883,0.1945356,118710.0,118700.0,1.5457714]
[1754853844781,0.1945356,118710.0,118700.0,1.9065714]
[1754853845594,0.2179256,118710.0,118700.0,1.9065714]
[1754853847186,0.2179256,118710.0,118700.0,1.9075714]
[1754853847484,0.2169256,118710.0,118700.0,1.9075714]
[1754853847785,0.2179256,118710.0,118700.0,1.9065714]
[1754853848084,0.2179256,118710.0,118700.0,1.5457714]